Workbook

Sheet Sheet1
A1: Product Name | B1: Max Yield (H/ATP = 4) | C1: Max Yield (H/ATP = 3) | D1: Max Yield(H/ATP = 5) | E1: Percent Decrease in Yield from H/ATP=3 to H/ATP=5 | F1: Reactions added to iSyp708 to enable synthesis of compound (Red numbers indicate stoichiometric coefficients)
B2: (mmol product/μmol photons) | C2: (mmol product/μmol photons) | D2: (mmol product/μmol photons)
A4: Ethanol | B4: 4.1667e-05 | C4: 4.1667e-05 | D4: 4.1667e-05 | E4: =(C4-D4)/C4 -> 0 | F4: Pyruvate + H --> Acetaldehyde + CO2 | G4: Acetaldehyde + NADPH + H --> Ethanol + NADP
A6: Glycerol | B6: 3.5714e-05 | C6: 3.5714e-05 | D6: 3.4783e-05 | E6: =(C6-D6)/C6 -> 0.02606820855 | F6: sn-Glycerol-3-phosphate + H2O --> Glycerol + Phosphate
A8: Sucrose | B8: 1.0309e-05 | C8: 1.0417e-05 | D8: 9.412e-06 | E8: =(C8-D8)/C8 -> 0.09647691274 | F8: (Pathway already in model)
A10: 2,3-Butanediol | B10: 2.2727e-05 | C10: 2.2727e-05 | D10: 2.2222e-05 | E10: =(C10-D10)/C10 -> 0.02222026664 | F10: (S)-2-Acetolactate + H --> (R)-Acetoin + CO2 | G10: (R)-Acetoin + NADPH + H --> 2,3-Butanediol + NADP
A12: L-Lactate | B12: 4.1667e-05 | C12: 4.1667e-05 | D12: 4.1667e-05 | E12: =(C12-D12)/C12 -> 0 | F12: Pyruvate + NADH + H --> L-Lactate + NAD
A14: D-Mannitol | B14: 1.9231e-05 | C14: 1.9231e-05 | D14: 1.8182e-05 | E14: =(C14-D14)/C14 -> 0.05454734543 | F14: D-Fructose-6-phosphate + NADH + H --> D-Mannitol-1-phosphate + NAD | G14: D-Mannitol-1-phosphate + H2O --> D-Mannitol + Phosphate
A16: Isobutyraldehyde | B16: 2.2727e-05 | C16: 2.2727e-05 | D16: 2.2222e-05 | E16: =(C16-D16)/C16 -> 0.02222026664 | F16: 3-Methyl-2-oxobutanoate + H --> Isobutyraldehyde + CO2
A18: Isobutanol | B18: 2.0833e-05 | C18: 2.0833e-05 | D18: 2.0833e-05 | E18: =(C18-D18)/C18 -> 0 | F18: 3-Methyl-2-oxobutanoate + H --> Isobutyraldehyde + CO2 | G18: Isobutyraldehyde + NADPH + H --> Isobutanol + NADP
A20: 2-Methyl-1-Butanol | B20: 1.6667e-05 | C20: 1.6667e-05 | D20: 1.6667e-05 | E20: =(C20-D20)/C20 -> 0 | F20: 3-Methyl-2-oxopentanoate + H --> 2-Methylbutyraldehyde + CO2 | G20: 2-Methylbutyraldehyde + NADPH + H --> 2-Methyl-1-butanol + NADP
A22: 3-Hydroxybutyrate | B22: 2.7211e-05 | C22: 2.7778e-05 | D22: 2.4845e-05 | E22: =(C22-D22)/C22 -> 0.1055871553 | F22: 2 Acetyl-CoA --> Acetoacetyl-CoA + CoA | G22: Acetoacetyl-CoA + NADPH + H --> 3-Hydroxybutanoyl-CoA + NADP | H22: 3-Hydroxybutanoyl-CoA + H2O --> 3-Hydroxybutanoate + CoA + H
A24: Acetone | B24: 2.9412e-05 | C24: 3.125e-05 | D24: 2.6667e-05 | E24: =(C24-D24)/C24 -> 0.146656 | F24: 2 Acetyl-CoA --> Acetoacetyl-CoA + CoA | G24: Acetoacetyl-CoA + H2O --> Acetoacetate + CoA + H | H24: Acetoacetate + H --> Acetone + CO2
A26: Isopropanol | B26: 2.7397e-05 | C26: 2.7778e-05 | D26: 2.5e-05 | E26: =(C26-D26)/C26 -> 0.1000071999 | F26: 2 Acetyl-CoA --> Acetoacetyl-CoA + CoA | G26: Acetoacetyl-CoA + H2O --> Acetoacetate + CoA + H | H26: Acetoacetate + H --> Acetone + CO2 | I26: Acetone + NADPH + H --> Isopropanol + NADP
A28: 1-Butanol | B28: 2.0833e-05 | C28: 2.0833e-05 | D28: 2.0513e-05 | E28: =(C28-D28)/C28 -> 0.01536024576 | F28: Malonyl-CoA + Acetyl-CoA + H --> Acetoacetyl-CoA + CO2 + CoA | G28: Acetoacetyl-CoA + NADPH + H --> 3-Hydroxybutanoyl-CoA + NADP | H28: 3-Hydroxybutanoyl-CoA --> Crotonyl-CoA + H2O | I28: Crotonyl-CoA + NADH + H --> Butyryl-CoA + NAD | J28: Butyryl-CoA + NADH + H --> 1-Butyraldehyde + CoA + NAD | K28: 1-Butyraldehyde + NADPH + H --> 1-Butanol + NADP
A30: 1,2-Propanediol | B30: 3.125e-05 | C30: 3.125e-05 | D30: 3.125e-05 | E30: =(C30-D30)/C30 -> 0 | F30: Dihydroxyacetonephosphate --> Methylglyoxyl + Phosphate | G30: Methylglyoxyl + NADPH + H --> Acetol + NADP | H30: Acetol + NADPH + H --> 1,2-Propanediol + NADP
A32: L-Lysine (Growth on nitrate) | B32: 1.1364e-05 | C32: 1.1364e-05 | D32: 1.1364e-05 | E32: =(C32-D32)/C32 -> 0 | F32: (Complete pathway already in model.)
A34: L-Lysine (Growth on ammonium) | B34: 1.7857e-05 | C34: 1.7857e-05 | D34: 1.7857e-05 | E34: =(C34-D34)/C34 -> 0 | F34: (Complete pathway already in model.)
A37: Terpenes via MEP Pathway
A38: Isoprene | B38: 1.7857e-05 | C38: 1.7857e-05 | D38: 1.7021e-05 | E38: =(C38-D38)/C38 -> 0.04681637453 | F38: Dimethylallyl diphosphate --> Isoprene + Diphosphate
A40: Limonene | B40: 8.929e-06 | C40: 8.929e-06 | D40: 8.511e-06 | E40: =(C40-D40)/C40 -> 0.04681375294 | F40: Geranyl diphosphate --> Limonene + Disphosphate
A42: Bisabolene | B42: 5.952e-06 | C42: 5.952e-06 | D42: 5.674e-06 | E42: =(C42-D42)/C42 -> 0.04670698925 | F42: Farnesyl diphosphate --> Bisabolene + Diphosphate
A44: Squalene | B44: 2.941e-06 | C44: 2.941e-06 | D44: 2.817e-06 | E44: =(C44-D44)/C44 -> 0.04216252975 | F44: 2 Farnesyl diphsophate --> Presqualene diphosphate + Diphosphate | G44: Presqualene diphosphate + NADPH + H --> Sqalene + Diphosphate + NADP
A47: Terpenes via MVA Pathway
A48: Isoprene | B48: 1.6949e-05 | C48: 1.7857e-05 | D48: 1.5385e-05 | E48: =(C48-D48)/C48 -> 0.1384331075 | F48: 2 Acetyl-CoA --> Acetoacetyl-CoA + CoA | G48: Acetoacetyl-CoA + Acetyl-CoA + H2O --> HMG-CoA + CoA + H | H48: HMG-CoA + 2 NADPH + 2 H --> Mevalonate + CoA + 2 NADP | I48: Mevalonate + ATP --> Mevalonate-5-phosphate + ADP + H | J48: Mevalonate-5-phosphate + ATP --> Mevalonate-5-diphosphate + ADP | K48: Mevalonate-5-diphosphate + ATP --> Isopentenyl diphosphate + CO2 + ADP + Phosphate | L48: Dimethylallyl diphosphate --> Isoprene + Diphosphate
A50: Limonene | B50: 8.475e-06 | C50: 8.929e-06 | D50: 7.692e-06 | E50: =(C50-D50)/C50 -> 0.1385373502 | F50: 2 Acetyl-CoA --> Acetoacetyl-CoA + CoA | G50: Acetoacetyl-CoA + Acetyl-CoA + H2O --> HMG-CoA + CoA + H | H50: HMG-CoA + 2 NADPH + 2 H --> Mevalonate + CoA + 2 NADP | I50: Mevalonate + ATP --> Mevalonate-5-phosphate + ADP + H | J50: Mevalonate-5-phosphate + ATP --> Mevalonate-5-diphosphate + ADP | K50: Mevalonate-5-diphosphate + ATP --> Isopentenyl diphosphate + CO2 + ADP + Phosphate | L50: Geranyl diphosphate --> Limonene + Disphosphate
A52: Bisabolene | B52: 5.65e-06 | C52: 5.952e-06 | D52: 5.128e-06 | E52: =(C52-D52)/C52 -> 0.1384408602 | F52: 2 Acetyl-CoA --> Acetoacetyl-CoA + CoA | G52: Acetoacetyl-CoA + Acetyl-CoA + H2O --> HMG-CoA + CoA + H | H52: HMG-CoA + 2 NADPH + 2 H --> Mevalonate + CoA + 2 NADP | I52: Mevalonate + ATP --> Mevalonate-5-phosphate + ADP + H | J52: Mevalonate-5-phosphate + ATP --> Mevalonate-5-diphosphate + ADP | K52: Mevalonate-5-diphosphate + ATP --> Isopentenyl diphosphate + CO2 + ADP + Phosphate | L52: Farnesyl diphosphate --> Bisabolene + Diphosphate
A54: Squalene | B54: 2.805e-06 | C54: 2.941e-06 | D54: 2.548e-06 | E54: =(C54-D54)/C54 -> 0.1336280177 | F54: 2 Acetyl-CoA --> Acetoacetyl-CoA + CoA | G54: Acetoacetyl-CoA + Acetyl-CoA + H2O --> HMG-CoA + CoA + H | H54: HMG-CoA + 2 NADPH + 2 H --> Mevalonate + CoA + 2 NADP | I54: Mevalonate + ATP --> Mevalonate-5-phosphate + ADP + H | J54: Mevalonate-5-phosphate + ATP --> Mevalonate-5-diphosphate + ADP | K54: Mevalonate-5-diphosphate + ATP --> Isopentenyl diphosphate + CO2 + ADP + Phosphate | L54: 2 Farnesyl diphsophate --> Presqualene diphosphate + Diphosphate | M54: Presqualene diphosphate + NADPH + H --> Sqalene + Diphosphate + NADP
A57: Fatty Acids and Alcohols
A58: Octanoic Acid | B58: 1.1364e-05 | C58: 1.1364e-05 | D58: 1.0638e-05 | E58: =(C58-D58)/C58 -> 0.06388595565 | F58: Octanoyl-ACP + H2O --> Octanoic Acid + ACP + H
A60: Octanol | B60: 1.0417e-05 | C60: 1.0417e-05 | D60: 9.877e-06 | E60: =(C60-D60)/C60 -> 0.05183834117 | F60: Octanoyl-ACP + H2O --> Octanoic Acid + ACP + H | G60: Octanoic Acid + ATP + CoA --> Octanoyl-CoA + AMP + Diphosphate | H60: Octanoyl-CoA + 2 NADPH + 2 H --> Octanol + CoA + 2 NADP
A62: Dodecanoic Acid | B62: 7.353e-06 | C62: 7.353e-06 | D62: 6.944e-06 | E62: =(C62-D62)/C62 -> 0.05562355501 | F62: Dodecanoyl-ACP + H2O --> Dodecanoic Acid + ACP + H
A64: Dodecanol | B64: 6.944e-06 | C64: 6.944e-06 | D64: 6.612e-06 | E64: =(C64-D64)/C64 -> 0.04781105991 | F64: Dodecanoyl-ACP + H2O --> Dodecanoic Acid + ACP + H | G64: Dodecanoic Acid + ATP + CoA --> Dodecanoyl-CoA + AMP + Diphosphate | H64: Dodecanoyl-CoA + 2 NADPH + 2 H --> Dodecanol + CoA + 2 NADP
A66: Hexadecanoic Acid | B66: 5.435e-06 | C66: 5.435e-06 | D66: 5.155e-06 | E66: =(C66-D66)/C66 -> 0.05151793928 | F66: Palmitoyl-ACP + H2O --> Hexadecanoic Acid + ACP + H
A68: Hexadecanol | B68: 5.208e-06 | C68: 5.208e-06 | D68: 4.969e-06 | E68: =(C68-D68)/C68 -> 0.04589093702 | F68: Palmitoyl-ACP + H2O --> Hexadecanoic Acid + ACP + H | G68: Hexadecanoic Acid + ATP + CoA --> Hexadecanoyl-CoA + AMP + Diphosphate | H68: Hexadecanoyl-CoA + 2 NADPH + 2 H --> Hexadecanol + CoA + 2 NADP
